bitfinex/quotes_ETHUSD_20250123
["timestamp","ask_amount","ask_price","bid_price","bid_amount"]
[1737668296924,0.7774,3241.5,3241.0,3.08544]
[1737668297232,2.0114,3241.5,3241.1,0.06244012]
[1737668297557,0.7774,3241.5,3241.0,3.08546]
[1737668297730,1.23392,3241.7,3241.2,0.0623761]
[1737668297937,0.7873,3241.7,3241.2,3.08526]
[1737668298134,0.7873,3241.7,3241.3,0.06231209]
[1737668298349,0.7873,3241.7,3241.3,3.06231209]
[1737668298534,2.02122,3241.7,3241.3,3.0]
[1737668298729,2.02122,3241.7,3241.4,0.06224807]
[1737668299663,0.7873,3241.7,3241.4,0.06224807]
[1737668299868,2.02301,3242.0,3241.4,0.30622481]
[1737668300035,0.7892,3242.0,3241.5,0.06218406]
[1737668300366,0.7892,3242.0,3241.4,3.08499]
[1737668300727,0.7892,3242.0,3241.5,6.14715406]
[1737668301176,0.7892,3242.0,3241.5,3.06218406]
[1737668302376,0.92531,3242.2,3241.6,3.0]
[1737668302586,0.92531,3242.2,3241.6,6.08489]
[1737668302881,0.92531,3242.2,3241.7,0.06205605]
[1737668303586,0.92534,3242.1,3241.7,0.06205605]
[1737668303961,0.92534,3242.1,3241.5,3.0]
[1737668304281,0.92531,3242.2,3241.5,3.0]
[1737668304282,0.92535,3242.0,3241.5,3.0]
[1737668304457,0.92537,3242.0,3241.6,0.06168512]
[1737668304785,0.92553,3241.4,3240.7,3.08566]
[1737668305087,0.92564,3241.0,3240.4,3.08603]
[1737668305287,0.92564,3241.0,3240.8,0.06219728]
[1737668305426,0.8181,3241.7,3240.3,0.8328]
[1737668305427,0.92552,3241.4,3240.3,0.8328]
[1737668305627,0.92549,3241.6,3241.0,3.0]
[1737668305926,0.92549,3241.6,3241.0,3.8328]
[1737668306132,0.92549,3241.6,3241.1,0.06209357]
[1737668306442,0.92552,3241.5,3241.1,0.06209357]
[1737668306636,1.74356,3241.7,3241.1,3.0]
[1737668306841,1.74356,3241.7,3241.2,0.06210734]
[1737668307250,0.92548,3241.6,3241.2,0.06210734]
[1737668307563,0.92548,3241.6,3240.9,3.0]
[1737668307564,0.92548,3241.6,3240.9,3.08555]
[1737668307862,0.8181,3241.7,3241.2,3.08519]
[1737668308062,0.8181,3241.7,3241.3,3.0]
[1737668308263,0.8181,3241.7,3241.3,3.06203625]
[1737668308955,0.8181,3241.7,3241.3,3.14720625]
[1737668309151,1.71887,3242.0,3241.3,3.14720625]
[1737668309353,0.7935,3242.3,3241.6,3.0]
[1737668309534,0.7935,3242.3,3241.9,3.0]
[1737668309730,0.7935,3242.3,3242.1,3.0]
[1737668309934,1.71868,3242.6,3242.1,3.0]
[1737668310134,0.7935,3242.6,3242.2,0.06140015]
[1737668310459,0.7935,3242.6,3242.1,3.0]
[1737668310676,0.7935,3242.6,3242.3,0.06133618]
[1737668310831,1.71869,3242.6,3242.1,3.0]
[1737668311040,0.92522,3242.5,3242.4,0.0612722]
[1737668311248,0.92522,3242.5,3241.9,3.0]
[1737668311449,0.92522,3242.5,3242.4,0.0612722]
[1737668311668,0.92522,3242.5,3242.0,0.608469]
[1737668311977,0.92522,3242.5,3242.4,0.0612722]
[1737668312170,0.92522,3242.5,3242.0,0.608469]
[1737668312669,0.92522,3242.5,3242.1,0.06146414]
[1737668313596,0.92529,3242.2,3242.1,0.06146414]
[1737668313760,1.71269,3242.2,3242.1,0.06146414]
[1737668313954,0.7874,3241.3,3240.5,3.883]
[1737668314161,0.9256,3241.2,3240.5,3.883]
[1737668314483,0.9256,3241.2,3240.6,3.14781371]
[1737668314670,0.9256,3241.2,3240.7,0.70308137]
[1737668314870,0.7874,3241.3,3240.7,6.85076104]
[1737668315070,0.7874,3241.3,3240.9,3.0]
[1737668315576,0.92547,3241.6,3241.0,3.14744927]
[1737668316072,0.92547,3241.6,3241.0,3.06206927]
[1737668316275,0.92547,3241.6,3241.0,3.6768292]
[1737668316769,0.9255,3241.5,3241.0,3.6768292]
[1737668316978,0.9255,3241.5,3241.0,3.06206927]
[1737668317481,0.92556,3241.3,3241.0,0.06206927]
[1737668317657,0.92558,3241.2,3240.6,3.08584]
[1737668317863,0.92558,3241.2,3241.1,0.06196989]
[1737668318059,0.92558,3241.2,3240.7,3.0]
[1737668318261,0.92558,3241.2,3241.1,0.06024532]
[1737668318459,0.92558,3241.2,3240.7,3.0]
[1737668318682,0.92558,3241.2,3241.1,0.06024532]
[1737668318890,0.92558,3241.2,3240.7,3.0]
[1737668319208,0.92558,3241.2,3241.1,0.06024532]
[1737668319797,0.92558,3241.2,3240.7,3.0]
[1737668320003,0.9255,3241.5,3241.1,0.06024532]
[1737668320184,0.79,3241.2,3240.7,3.0]
[1737668320388,0.92551,3241.5,3240.8,3.08557]
[1737668320591,0.92551,3241.5,3240.9,3.0]
[1737668321076,0.92554,3241.4,3240.9,3.0]
[1737668322888,0.92551,3241.5,3240.9,3.0]
[1737668323089,0.92555,3241.3,3240.9,3.0]
[1737668323758,0.92551,3241.5,3240.9,6.08555]
[1737668323961,0.92551,3241.5,3240.9,7.002662]
[1737668324256,0.92552,3241.4,3240.9,3.917112]
[1737668324491,0.92552,3241.4,3240.9,3.0]
[1737668324686,0.92551,3241.5,3240.9,3.0]
[1737668324903,0.92551,3241.5,3240.9,6.0855]
[1737668325255,1.85089,3241.7,3241.0,3.08545]
[1737668325593,0.92547,3241.6,3241.1,3.0]
[1737668327097,0.61142188,3242.0,3241.1,3.0]
[1737668327098,0.92535,3242.0,3241.4,6.08506]
[1737668327416,0.8089,3242.1,3241.6,3.0]
[1737668327557,0.92535,3242.0,3241.2,3.8106]
[1737668327890,0.92541,3241.8,3241.2,0.8106]
[1737668328211,0.92548,3241.6,3241.0,3.08544]
[1737668328385,0.92548,3241.6,3241.1,3.308544]
[1737668328595,0.8089,3242.1,3241.1,0.308544]
[1737668328762,0.8089,3242.1,3241.4,3.0]
[1737668328971,0.8089,3242.1,3241.6,3.0]
[1737668329269,0.8089,3242.1,3241.7,0.06008041]
[1737668329463,0.92541,3241.8,3241.7,0.06008041]
[1737668329680,0.92555,3241.3,3240.7,3.0]
[1737668329862,0.92555,3241.3,3240.8,0.688632]
[1737668330969,0.92561,3241.2,3240.8,0.688632]
[1737668331180,0.92561,3241.2,3240.7,3.0]
[1737668331689,0.92555,3241.3,3240.7,3.0]
[1737668332463,0.92555,3241.3,3240.7,6.08573]
[1737668332865,0.7567,3241.8,3241.5,3.0]
[1737668333200,0.9253,3242.2,3241.7,3.0]
[1737668333870,0.92532,3242.1,3241.7,3.0]
[1737668334075,0.9253,3242.2,3241.7,3.0]
[1737668334276,0.92532,3242.1,3241.7,3.0]
[1737668334479,0.9253,3242.2,3241.7,3.0]
[1737668334670,1.73434,3242.4,3241.7,3.687939]
[1737668335026,1.73434,3242.4,3241.9,3.0]
[1737668335165,0.92527,3242.3,3241.9,3.0]
[1737668335367,1.73434,3242.4,3241.9,3.0]
[1737668335573,0.92529,3242.3,3241.7,3.772669]
[1737668335825,0.92526,3242.3,3241.3,3.0]
[1737668335962,0.92543,3241.8,3241.2,3.08519]
[1737668336166,0.92536,3242.0,3241.3,6.08511]
[1737668336906,0.92535,3242.1,3241.5,3.08493]
[1737668337059,0.92535,3242.1,3241.6,0.308493]
[1737668337264,0.92535,3242.0,3241.5,3.08493]
[1737668338298,0.92531,3242.2,3241.5,3.08493]
[1737668338478,0.92532,3242.1,3241.6,3.0]
[1737668339105,0.8091,3242.4,3241.1,0.8133]
[1737668339416,0.92521,3242.5,3240.9,3.08552]
[1737668339417,0.92521,3242.5,3241.9,3.08459]
[1737668339916,0.92529,3242.3,3241.7,3.08473]
[1737668340126,0.92529,3242.3,3241.6,3.0]
[1737668340127,0.92534,3242.1,3241.8,0.608473]
[1737668340432,0.92547,3241.6,3241.0,3.08545]
[1737668341215,0.61698,3241.6,3240.9,6.08549]
[1737668341391,0.61694,3241.8,3241.0,6.08538]
[1737668341571,0.61694,3241.8,3241.2,3.0]
[1737668341778,0.61701,3241.4,3240.7,3.08568]
[1737668342010,1.43663,3241.3,3240.6,3.89521]
[1737668342211,1.43663,3241.3,3240.7,3.0]
[1737668342418,0.6172,3240.5,3239.9,0.7683]
[1737668342577,0.61711,3240.9,3239.9,3.85477]
[1737668342779,1.43664,3241.3,3240.8,3.0]
[1737668342978,0.61705,3241.2,3240.7,3.0]
[1737668343378,0.8196,3241.3,3240.7,3.0]
[1737668343575,1.43663,3241.3,3240.7,3.0]
[1737668343823,0.8196,3241.3,3240.8,3.08564]
[1737668344116,1.43663,3241.3,3240.7,6.08573]
[1737668344313,0.6171,3241.0,3240.9,0.0603804]
[1737668344618,0.6171,3241.0,3240.4,3.0]
[1737668344814,0.6171,3241.0,3240.9,0.0603804]
[1737668345014,0.6171,3241.0,3240.4,3.608606]
[1737668345015,0.6171,3241.0,3240.4,3.0]
[1737668345228,0.6171,3241.0,3240.9,0.0603804]
[1737668345435,0.61705,3241.2,3240.5,3.08587]
[1737668345639,0.8196,3241.3,3240.9,0.0603804]
[1737668345782,0.8196,3241.3,3240.8,3.0]
[1737668345983,0.61706,3241.2,3241.0,0.06031637]
[1737668346182,0.822428,3241.2,3240.9,0.0603804]
[1737668346421,0.822428,3241.2,3241.1,0.06025234]
[1737668346599,0.6171,3241.0,3240.4,3.0]
[1737668347006,0.6171,3241.0,3240.5,0.06063656]
[1737668347201,0.822428,3241.2,3240.5,3.14651656]
[1737668347202,0.61706,3241.2,3240.5,3.14651656]
[1737668347400,1.43663,3241.3,3240.7,6.08574]
[1737668347602,1.38618,3241.6,3240.9,3.08548]
[1737668347837,0.61699,3241.5,3241.0,3.08546]
[1737668348130,0.61699,3241.5,3241.0,0.06031637]
[1737668348333,0.61699,3241.5,3240.8,6.88881]
[1737668348483,0.61699,3241.5,3241.1,0.06025234]
[1737668348994,1.38618,3241.6,3240.8,3.8032]
[1737668349342,0.61698,3241.6,3241.0,3.0]
[1737668349538,0.61698,3241.6,3241.2,3.0]
[1737668350125,0.61698,3241.6,3241.3,0.0601243]
[1737668350287,0.61698,3241.6,3241.2,3.0]
[1737668350485,0.7753,3241.9,3241.4,6.14508029]
[1737668350795,1.37377,3242.2,3241.5,3.08496]
[1737668350944,1.37377,3242.2,3241.6,3.0]
[1737668351301,0.6169,3242.1,3241.7,0.06000264]
[1737668351501,0.61692,3241.9,3241.4,3.0]
[1737668351701,0.61692,3241.9,3241.8,0.05993864]
[1737668351936,0.61694,3241.8,3241.2,3.08527]
[1737668352137,0.61685,3242.3,3241.0,3.0]
[1737668352138,0.7838,3241.6,3241.0,3.0]
[1737668352440,0.61704,3241.3,3240.8,0.7978]
[1737668352603,0.61699,3241.5,3240.8,7.33317917]
[1737668353242,0.7838,3241.6,3241.3,3.0]
[1737668354102,0.61694,3241.8,3241.3,3.0]
[1737668354314,0.61694,3241.8,3241.0,3.08542]
[1737668354934,0.61694,3241.8,3241.2,3.08526]
[1737668355341,0.61696,3241.7,3241.0,3.08542]
[1737668355559,0.61694,3241.8,3241.1,3.08528]
[1737668355918,0.61696,3241.7,3241.0,3.08542]
[1737668356121,0.7691,3241.7,3240.5,0.8196]
[1737668356319,0.61712,3240.9,3240.2,0.8196]
[1737668356524,0.61719,3240.5,3239.9,3.90603]
[1737668356727,0.61716,3240.7,3239.9,3.90603]
[1737668356925,0.7691,3240.8,3240.3,3.0]
[1737668357425,1.38623,3240.8,3240.2,3.0862]
[1737668357819,0.7691,3240.8,3240.3,3.0]
[1737668358023,1.38619,3241.1,3240.4,3.08598]
[1737668358624,1.38618,3241.1,3240.4,3.08598]
[1737668358825,1.38618,3241.1,3240.3,3.0]
[1737668359025,1.38618,3241.1,3240.5,3.08593]
[1737668359258,1.38618,3241.1,3240.6,0.0587132]
[1737668359459,0.7691,3241.1,3240.7,3.0]
[1737668359663,0.61704,3241.3,3240.7,3.66722516]
[1737668359860,1.39143,3241.4,3240.7,3.66722516]
[1737668360026,0.7744,3241.4,3240.9,3.0]
[1737668360442,1.39142,3241.4,3241.0,0.05845705]
[1737668362451,0.61703,3241.3,3241.0,0.05845705]
[1737668362766,1.39142,3241.4,3241.0,0.05845705]
[1737668363080,1.39142,3241.4,3240.8,6.08559]
[1737668363248,0.7744,3241.4,3241.1,0.05839303]
[1737668363581,0.82,3241.7,3241.2,6.08521]
[1737668363751,0.82,3241.7,3241.2,6.14368043]
[1737668365346,1.4305,3242.0,3241.4,3.08507]
[1737668365847,1.4305,3242.0,3241.5,0.05822181]
[1737668366168,0.61692,3241.9,3241.5,0.05822181]
[1737668366348,1.4305,3242.0,3241.5,0.05822181]
[1737668366543,0.61692,3241.9,3241.3,6.0851]
[1737668366749,0.61692,3241.9,3241.6,0.05811538]
[1737668366930,0.61692,3241.9,3241.3,6.0851]
[1737668367130,0.61694,3241.8,3241.7,0.05805137]
[1737668367336,0.61697,3241.7,3241.3,3.0]
[1737668367558,0.8136,3242.0,3240.6,3.08577]
[1737668367559,0.772,3241.3,3240.6,3.08577]
[1737668367759,0.7506,3241.6,3240.7,0.390047]
[1737668367945,1.36758,3241.6,3241.1,3.0]
[1737668368152,0.617,3241.5,3240.9,3.0]
[1737668368442,0.617,3241.5,3240.9,6.08549]
[1737668368642,0.7506,3241.6,3241.1,3.0]
[1737668369069,1.36758,3241.6,3241.1,3.0]
[1737668369634,0.7506,3241.6,3241.1,3.0]
[1737668370382,1.36758,3241.6,3241.1,3.0]
[1737668370673,0.7506,3241.6,3241.1,3.0]
[1737668371269,1.36758,3241.6,3241.1,3.0]
[1737668371776,0.7506,3241.6,3241.1,6.08534]
[1737668371939,0.7506,3241.6,3241.1,6.693881]
[1737668372776,0.61696,3241.7,3241.1,6.693881]
[1737668372939,0.61696,3241.7,3241.1,7.494781]
[1737668373864,1.43872,3241.9,3241.4,3.0]
[1737668374242,1.43872,3241.9,3241.5,0.05803796]
[1737668374650,0.8218,3241.9,3241.5,3.14298796]
[1737668374854,0.8218,3241.9,3241.5,0.05803796]
[1737668375956,0.8218,3241.9,3241.6,3.08488]
[1737668376154,1.37837,3242.2,3241.7,0.05789581]
[1737668376355,1.37837,3242.2,3241.7,3.05789581]
[1737668376664,0.61689,3242.1,3241.7,0.05789581]
[1737668376870,0.61689,3242.1,3241.5,0.9228268]
[1737668377179,0.61689,3242.1,3241.6,3.05795982]
[1737668377384,0.61691,3242.0,3241.6,0.05795982]
[1737668377738,1.37837,3242.2,3241.6,3.08487]
[1737668377943,1.37837,3242.2,3241.7,0.05789581]
[1737668378155,0.6169,3242.0,3241.4,6.08505]
[1737668378378,0.6169,3242.0,3241.5,0.54873573]
[1737668378881,1.37837,3242.2,3241.6,3.0]
[1737668379099,0.7615,3242.2,3241.7,0.05789581]
[1737668379401,1.36812,3242.5,3242.0,3.0]
[1737668379596,0.61678,3242.7,3242.0,6.08442]
[1737668379741,0.198483,3242.7,3242.3,3.0]
[1737668380084,0.198483,3242.7,3242.2,3.0843]
[1737668380085,0.7513,3242.9,3242.4,0.05737367]
[1737668380258,0.7513,3242.9,3242.6,3.08391]
[1737668380457,1.23364514,3243.2,3242.7,0.05718178]
[1737668380843,0.61696514,3243.2,3242.7,0.05718178]
[1737668381044,0.61696514,3243.2,3242.5,3.08403]
[1737668381287,0.61696514,3243.2,3242.6,0.05701249]
[1737668381483,0.61696514,3243.2,3242.5,3.08402]
[1737668381673,0.7513,3243.3,3242.7,0.05694853]
[1737668381876,0.7513,3243.3,3242.4,3.08407]
[1737668382077,0.7513,3243.3,3242.5,0.44627346]
[1737668382461,0.60589793,3243.5,3242.5,0.44627346]
[1737668382657,0.7513,3243.6,3243.1,3.0]
[1737668382893,0.7929,3244.0,3243.0,0.8173]
[1737668383088,0.7929,3244.0,3243.2,0.05653338]
[1737668383252,0.61780611,3244.1,3243.7,3.08286]
[1737668383455,0.61780611,3244.1,3243.8,0.05614981]
[1737668383659,0.7929,3244.3,3243.7,3.0]
[1737668383850,0.7929,3244.3,3243.7,6.08288]
[1737668384173,0.7929,3244.3,3243.8,0.05478986]
[1737668384519,0.7929,3244.3,3243.7,3.0]
[1737668384725,0.7929,3244.3,3243.9,0.05472594]
[1737668384931,0.7929,3244.3,3243.7,3.0]
[1737668385085,0.7929,3244.3,3244.0,0.05466203]
[1737668385262,0.7929,3244.3,3243.7,3.0]
[1737668385462,0.7929,3244.3,3243.8,0.05478986]
[1737668385663,0.7929,3244.3,3243.7,3.0]
[1737668386013,0.7929,3244.3,3243.8,0.05478986]
[1737668386164,0.7929,3244.3,3243.8,0.75029585]
[1737668388266,0.832,3245.1,3244.1,3.08249]
[1737668388626,0.62661639,3244.9,3244.2,0.05453422]
[1737668389521,0.62661639,3244.9,3244.2,3.13691422]
[1737668391727,2.89475712,3244.7,3244.2,0.05453422]
[1737668392025,0.8114,3244.6,3243.2,3.0833]
[1737668392167,0.8114,3244.6,3243.1,3.0]
[1737668392498,0.8114,3244.6,3243.2,0.0529355]
[1737668393067,0.8114,3244.6,3243.3,3.08321]
[1737668393287,0.8114,3244.6,3243.5,3.08307]
[1737668393464,0.8114,3244.6,3243.6,0.05267976]
[1737668393665,0.8114,3244.6,3243.7,3.08282]
[1737668393883,0.8114,3244.6,3243.8,0.05255192]
[1737668394402,0.8114,3244.6,3243.9,3.0]
[1737668394898,0.8114,3244.6,3244.0,6.1351861]
[1737668395214,0.8114,3244.6,3244.3,3.0]
[1737668395417,0.7795,3245.1,3244.3,3.8616]
[1737668395580,0.7795,3245.1,3244.6,3.0]
[1737668395768,0.7795,3245.1,3244.8,3.0]
[1737668396019,0.7795,3245.1,3244.9,0.05183498]
[1737668398950,0.7786,3245.6,3245.1,6.08156]
[1737668399275,0.7786,3245.6,3245.2,0.05155178]
[1737668399777,0.7786,3245.6,3245.2,3.05155178]
[1737668399939,0.6301406,3246.1,3245.4,3.0]
[1737668400269,0.7786,3246.0,3245.5,0.05124046]
[1737668400692,0.7786,3246.0,3245.2,3.0]
[1737668400851,0.7786,3246.0,3245.6,0.05117661]
[1737668401188,0.7786,3246.0,3245.7,0.05111277]
[1737668401531,0.7786,3246.0,3245.3,3.08134]
[1737668401755,0.7786,3246.0,3245.4,0.05130431]
[1737668402350,0.7786,3247.0,3245.4,0.05130431]
[1737668402573,0.6305104,3246.6,3245.8,3.0]
[1737668402778,0.7786,3246.5,3245.9,0.05098509]
[1737668402979,0.7786,3246.5,3245.3,0.7569]
[1737668402980,0.7786,3246.5,3245.7,3.0]
[1737668403183,0.7786,3246.5,3245.8,0.05104893]
[1737668403482,0.7786,3246.5,3245.9,0.30510489]
[1737668403772,0.7786,3247.3,3246.2,3.08048]
[1737668403998,0.61799881,3247.0,3246.3,0.05072978]
[1737668404138,0.7786,3246.9,3246.3,0.05072978]
[1737668404338,0.7786,3246.9,3246.0,3.0]
[1737668404592,0.7786,3246.9,3246.1,3.13098906]
[1737668405386,0.7786,3246.9,3246.1,0.05038906]
[1737668405586,0.7786,3246.9,3246.1,0.73918697]
[1737668405742,0.7786,3246.9,3246.1,3.81971697]
[1737668405939,0.7786,3246.9,3246.2,3.08044]
[1737668406258,0.7786,3246.9,3246.3,0.05026142]
[1737668406574,0.7786,3246.9,3246.3,3.05026142]
[1737668406775,0.7786,3246.9,3246.4,0.61307014]
[1737668406971,0.7786,3246.9,3246.5,0.05013379]
[1737668407957,0.8009,3247.6,3246.7,3.0]
[1737668408238,0.8009,3247.6,3246.5,0.05013379]
[1737668408239,0.60585893,3247.5,3246.8,0.04994237]
[1737668408445,0.7872,3247.3,3246.8,0.04994237]
[1737668408753,0.7872,3247.2,3246.6,3.0]
[1737668408955,0.7872,3247.2,3246.7,0.05000617]
[1737668410280,2.89475712,3247.1,3245.9,3.84144]
[1737668410451,0.803,3247.0,3246.8,0.0494425]
[1737668410638,0.803,3247.0,3245.9,0.7607]
[1737668410639,1.09247571,3247.0,3245.9,0.7607]
[1737668411040,1.09247571,3247.0,3246.0,3.04798042]
[1737668411623,0.803,3247.0,3246.0,3.04798042]
[1737668412021,0.7839,3246.7,3246.0,0.04798042]
[1737668412395,0.7839,3246.7,3245.5,3.85442]
[1737668412396,1.38692435,3246.7,3245.6,3.0]
[1737668412606,1.38692435,3246.7,3246.1,0.04791659]
[1737668413023,1.38692435,3246.7,3245.8,3.0]
[1737668413323,0.7839,3246.7,3246.1,3.08061]
[1737668413526,0.7839,3246.7,3246.2,3.0]
[1737668413746,0.7839,3246.7,3246.2,3.04807121]
[1737668415012,0.7839,3246.7,3246.2,0.04807121]
[1737668415206,0.7839,3246.7,3246.2,0.35287833]
[1737668415521,0.7839,3246.7,3246.2,3.43339833]
[1737668416008,0.8144,3247.2,3246.5,3.0]
[1737668416207,0.8144,3247.2,3246.4,3.08026]
[1737668416438,0.8144,3247.2,3246.6,0.04772809]
[1737668416623,0.8144,3247.2,3246.5,0.3558179]
[1737668416942,0.8144,3247.2,3246.7,0.04765726]
[1737668417110,0.8144,3247.2,3246.5,0.308026]
[1737668417310,0.8144,3247.2,3246.6,0.04759037]
[1737668417946,0.8144,3247.2,3246.7,3.33556164]
[1737668418151,0.8144,3247.2,3246.8,0.04760694]
[1737668424447,0.8144,3247.2,3246.3,3.0]
[1737668424620,0.8144,3247.2,3246.9,0.04752633]
[1737668424820,0.8144,3247.2,3246.3,3.0]
[1737668425021,0.8144,3247.2,3247.0,0.04746254]
[1737668425226,0.55,3247.1,3245.8,3.08087]
[1737668425425,0.55,3247.1,3245.9,3.08073]
[1737668425426,0.8191,3247.0,3245.9,3.08073]
[1737668425626,0.8191,3247.0,3245.9,3.12879257]
[1737668425843,0.8191,3247.0,3246.1,3.0806]
[1737668426053,0.8191,3247.0,3246.1,0.31286626]
[1737668426256,0.8191,3247.0,3246.4,3.08031]
[1737668426432,0.8191,3247.0,3246.2,3.12836109]
[1737668426433,0.8191,3247.0,3246.2,3.90316109]
[1737668426628,0.8191,3247.0,3246.5,0.0477956]
[1737668426832,0.8191,3247.0,3246.4,3.0]
[1737668427033,0.8191,3247.0,3246.6,0.04773179]
[1737668427232,0.8191,3247.0,3246.2,3.85529]
[1737668427233,0.8191,3247.0,3246.5,0.0477956]
[1737668427460,0.8191,3247.0,3246.7,0.04766799]
[1737668427780,0.8191,3247.0,3246.6,0.04766853]
[1737668427925,0.8191,3247.0,3246.7,0.04760473]
[1737668428127,1.44962562,3247.6,3246.3,3.0]
[1737668428375,0.819,3247.5,3246.5,3.08019]
[1737668428529,0.819,3247.5,3246.5,3.0]
[1737668428874,0.819,3247.5,3246.6,0.04767556]
[1737668431235,3.44475712,3247.4,3246.6,0.04767556]
[1737668431434,0.7984,3247.3,3246.6,0.04767556]
[1737668431939,0.7984,3247.3,3246.7,0.04759768]
[1737668432251,0.7984,3247.3,3246.4,6.0803]
[1737668432437,0.7984,3247.3,3246.1,0.8018]
[1737668432641,0.7984,3247.3,3246.6,3.0]
[1737668432988,0.7984,3247.3,3246.7,0.07930618]
[1737668433957,0.7984,3247.3,3246.7,6.4752568]
[1737668434162,0.7984,3247.3,3246.7,3.3952468]
[1737668434780,0.7984,3247.3,3246.7,6.4752868]
[1737668435074,0.7984,3247.3,3246.9,3.0]
[1737668435440,0.7984,3247.3,3247.0,0.07912538]
[1737668436482,0.7984,3247.3,3246.4,6.08032]
[1737668436693,0.7984,3247.3,3247.1,0.07906062]
[1737668436867,0.7984,3247.3,3246.5,0.998591]
[1737668437072,0.7984,3247.3,3247.2,0.07899586]
[1737668437292,0.7984,3247.3,3246.5,4.078821]
[1737668438095,0.7984,3247.3,3246.6,0.07937108]
[1737668438592,0.7984,3247.3,3246.6,0.79519029]
[1737668440985,0.7621,3247.9,3247.1,3.07958]
[1737668441204,0.7621,3247.9,3247.2,3.15632417]
[1737668441733,0.7621,3247.9,3247.2,0.07683417]
[1737668442077,0.7621,3247.9,3247.0,6.15946]
[1737668442323,0.7621,3247.9,3247.3,0.07655861]
[1737668442509,0.7621,3247.9,3247.1,3.615946]
[1737668442710,0.7621,3247.9,3247.4,0.07649386]
[1737668442902,0.7621,3247.9,3247.1,3.615946]
[1737668443119,0.7621,3247.9,3247.5,0.07642911]
[1737668443279,0.7621,3247.9,3247.5,3.07642911]
[1737668443663,0.167039,3248.0,3247.7,3.0]
[1737668443790,0.167039,3248.0,3247.6,0.69180176]
[1737668444307,0.167039,3248.0,3247.6,0.07622085]
[1737668444489,0.167039,3248.0,3247.6,3.07622085]
[1737668444690,0.167039,3248.0,3247.6,0.07622085]
[1737668445124,0.167039,3248.0,3247.3,6.85433]
[1737668445283,0.167039,3248.0,3247.7,0.07604143]
[1737668445481,0.167039,3248.0,3247.3,6.85433]
[1737668445680,0.167039,3248.0,3247.8,0.0759767]
[1737668445920,0.167039,3248.0,3247.4,0.993388]
[1737668446112,0.167039,3248.0,3247.9,0.07591197]
[1737668446322,0.167039,3248.0,3246.8,3.0799]
[1737668446323,0.167039,3248.0,3247.1,3.695576]
[1737668446523,0.167039,3248.0,3247.9,0.07587334]
[1737668446707,0.167039,3248.0,3247.2,3.0]
[1737668446908,0.819,3247.9,3247.0,3.7678]
[1737668447112,0.819,3247.9,3247.3,0.07626177]
[1737668447294,0.819,3247.9,3247.0,3.84755]
[1737668447499,0.819,3247.9,3247.4,0.07619702]
[1737668447825,0.55,3247.9,3247.5,0.07617437]
[1737668448015,3.44475712,3247.9,3246.3,3.84814]
[1737668448191,0.55,3247.8,3246.3,1.460673]
[1737668448387,0.55,3247.8,3246.4,0.07690782]
[1737668448644,0.167039,3248.0,3247.1,3.07965]
[1737668448942,0.167039,3248.0,3247.2,3.0]
[1737668449145,0.167039,3248.0,3247.2,3.0732193]
[1737668449746,0.167039,3248.0,3247.3,0.61528693]
[1737668449747,0.55,3247.9,3247.3,0.61528693]
[1737668449922,0.55,3247.9,3247.2,0.0732193]
[1737668450123,0.55,3247.9,3247.4,0.07373746]
[1737668450321,0.55,3247.9,3247.3,0.07380221]
[1737668450645,0.7851,3247.8,3247.4,0.07375849]
[1737668450844,0.7851,3247.8,3246.8,3.07994]
[1737668451152,0.7851,3247.8,3246.9,3.38203614]
[1737668451643,0.7851,3247.8,3246.9,0.38203614]
[1737668451847,0.7851,3247.8,3247.4,3.07938]
[1737668452169,0.167039,3248.0,3247.7,3.07907]
[1737668452452,0.167039,3248.0,3247.8,0.07315098]
[1737668452816,0.167039,3248.0,3247.6,3.0]
[1737668453236,0.167039,3248.0,3247.7,0.07321576]
[1737668453433,0.167039,3248.0,3247.7,0.68846234]
[1737668453658,0.167039,3248.0,3247.7,0.07321576]
[1737668454947,0.167039,3248.0,3247.7,3.07321576]
[1737668455155,0.167039,3248.0,3247.9,6.07891]
[1737668455540,0.167039,3248.0,3247.9,3.07320872]
[1737668455929,0.167039,3248.0,3247.9,6.15211872]
[1737668456131,0.167039,3248.0,3247.9,6.84969059]
[1737668457232,0.167039,3248.0,3247.9,3.77078059]
[1737668458331,0.167039,3248.0,3247.9,6.84969059]
[1737668462236,0.167039,3248.0,3247.9,3.77078059]
[1737668462773,0.167039,3248.0,3247.9,6.84969059]
[1737668462987,0.167039,3248.0,3247.9,7.66799059]
[1737668464400,0.167039,3248.0,3247.9,42.66799059]
[1737668465586,3.0,3250.6,3249.5,3.07737]
[1737668465587,0.806,3250.6,3249.5,3.07737]
[1737668465885,0.806,3250.6,3249.1,0.8235]
[1737668465886,0.806,3250.6,3249.6,3.07113911]
[1737668466110,0.806,3250.6,3249.9,3.07695]
[1737668466302,0.806,3250.6,3250.2,3.07667]
[1737668466572,0.167039,3251.3,3250.6,3.0]
[1737668466573,0.7655,3251.2,3250.6,3.0]
[1737668466774,1.3816168,3251.2,3250.6,3.0]
[1737668466980,0.7655,3251.2,3250.7,0.07016148]
[1737668467200,0.167039,3251.3,3250.7,0.07016148]
[1737668467485,0.167039,3251.3,3251.0,3.0]
[1737668467692,0.167039,3251.3,3251.2,6.07578]
[1737668468193,0.167039,3251.3,3251.2,6.14531692]
[1737668468862,0.806,3253.1,3252.5,3.0]
[1737668469081,0.806,3253.1,3252.6,0.06863292]
[1737668469288,0.45095665,3254.1,3252.6,3.06863292]